Cogmind - Beta 17 @@@ ROGUE MODE // 2026.08.22 @ 15:39:31 Player: MrFartsburg Result: Destroyed by G-34 Mercenary with Small Laser Performance ------------- Evolutions (1) 500 Regions Visited (3) 600 Robots Destroyed (13) 65 Value Destroyed (246) 246 Prototype IDs (0) 0 Alien Tech Used (0) 0 Bonus (0) 0 TOTAL SCORE: 1411 Bonus ------- None Cogmind --------- Core Integrity 0/400 Matter 275/300 Energy 99/100 System Corruption 0% Temperature Cool (6) Movement Core (100) Ox1 Location -9/Storage Parts ------- > --- POWER (1) -------- (None) > --- PROPULSION (2) --- (None) > --- UTILITY (4) ------ Small Storage Unit Improved Targeting Computer > --- WEAPON (2) ------- (None) > --- INVENTORY (8) ---- Aluminum Leg Compact Wheel Compact Wheel Improved Targeting Computer Peak State ------------ > --- POWER ------------ Light Ion Engine > --- PROPULSION ------- Aluminum Leg Aluminum Leg > --- UTILITY ---------- Cooling System Small Storage Unit Terrain Scanner Improved Targeting Computer > --- WEAPON ----------- Assault Rifle EMP Blaster > --- INVENTORY -------- Light Treads Light Treads Compact Wheel Compact Wheel Seismic Detector Light Assault Rifle [Rating: 12] Favorites ----------- Power Light Ion Engine Engine Light Ion Engine Propulsion Aluminum Leg Treads Light Treads Leg Aluminum Leg Utility Small Storage Unit Device Cooling System Storage Small Storage Unit Processor Improved Targeting Computer Weapon Assault Rifle Ballistic Gun Assault Rifle Launcher EMP Blaster Build | -11 -10 -9 -9 ------- Run | Yrd Mat Mat Sto Slots Evolved 2 | . . 2 . Power . | . . . . Propulsion . | . . . . Utility 2 | . . 2 . Weapon . | . . . . Parts Attached 13 | 6 2 2 3 Power 1 | 1 . . . Engine 1 | 1 . . . Core . | . . . . Reactor . | . . . . Propulsion 4 | 2 . . 2 Treads 2 | . . . 2 Leg 2 | 2 . . . Wheel . | . . . . Hover . | . . . . Flight . | . . . . Utility 5 | 1 1 2 1 Device 3 | . . 2 1 Storage 1 | 1 . . . Processor 1 | . 1 . . Hackware . | . . . . Protection . | . . . . Artifact . | . . . . Weapon 3 | 2 1 . . Energy Gun . | . . . . Energy Cannon . | . . . . Ballistic Gun 2 | 2 . . . Ballistic Cannon . | . . . . Launcher 1 | . 1 . . Special Weapon . | . . . . Impact Weapon . | . . . . Slashing Weapon . | . . . . Piercing Weapon . | . . . . Special Melee Weapon . | . . . . Unidentified Prototypes . | . . . . Parts Lost 10 | . . 1 9 Power 1 | . . 1 . Propulsion 3 | . . . 3 Utility 3 | . . . 3 Weapon 3 | . . . 3 Highest Loss Streak 5 | . . 1 5 To Critical Strikes 1 | . . 1 . Average Backups 5 | 2 5 6 5 Power . | . . . . Propulsion 3 | 2 4 4 3 Utility 1 | . . 1 1 Weapon . | . . 1 . Tool/Special . | . . . . Unused Backups 4 | . 1 . 3 Power . | . . . . Propulsion 3 | . 1 . 2 Utility 1 | . . . 1 Weapon . | . . . . Tool/Special . | . . . . Average Slot Usage (%) 88 | . 93 99 78 Engine 7 | . 14 11 . Treads 3 | . . . 9 Leg 19 | . 28 22 10 Device 12 | . . 21 20 Storage 12 | . 14 11 11 Processor 9 | . 8 11 11 Ballistic Gun 15 | . 22 11 11 Launcher 6 | . 6 11 5 Peak Build Rating 12 | 6 9 12 11 Average Rating 8 | 5 7 11 9 On Entrance 6 | . 6 9 11 Avg Prop Armor Cover (%) . | . . . . Naked Turns . | . . . . Heaviest Build 17 | 11 14 17 14 Greatest Support 40 | 20 20 20 40 Greatest Overweight (x) 2 | 2 . . 1 Average Overweight (x) . | . . . . Largest Inventory Capacity 8 | 8 8 8 8 Average Capacity 7 | 7 8 8 8 Most Carried 8 | 4 8 7 7 Average Carried 5 | 2 5 6 5 Final Capacity 8 | 8 8 8 8 Final Carried 8 | 4 8 7 4 Class Distribution -------------------- 100% | Mutant Dominant Class ---------------- Mutant | -10/Materials Mutant | -9/Materials Mutant | -9/Storage Resources | -11 -10 -9 -9 ----------- Run | Yrd Mat Mat Sto Matter Collected 412 | 222 153 . 37 Remotely . | . . . . Salvage Created 491 | . 376 . 115 Parts 34 | . 23 . 11 Haulers Intercepted . | . . . . Recyclers Shooed 4 | . 4 . . Parts Field Recycled . | . . . . Retrieved Matter . | . . . . Parts Self-Destructed . | . . . . Prevented . | . . . . Parts Restored . | . . . . Kills | -11 -10 -9 -9 ------- Run | Yrd Mat Mat Sto Combat Hostiles Destroyed 10 | . 8 . 2 Guns 5 | . 4 . 1 AOE 5 | . 4 . 1 Classes Destroyed 5 | . 4 . 1 Recycler 2 | . 2 . . Watcher 1 | . 1 . . Swarmer 6 | . 6 . . Grunt 2 | . 2 . . Sentry 2 | . . . 2 Best Kill Streak 5 | . 5 . 1 Combat Bots Only 3 | . 3 . 1 Max Kills in Single Turn 3 | . 3 . 1 Gunslinging . | . . . . Exploded 2 | . 2 . 1 Melee . | . . . . Uniques/NPCs Destroyed . | . . . . Combat | -11 -10 -9 -9 -------- Run | Yrd Mat Mat Sto Hostile Shots Fired 153 | . 44 7 102 Missed 41 | . 14 1 26 Hits 112 | . 30 6 76 Projectile 112 | . 30 6 76 Critical Strikes 6 | . . 1 5 Damage Taken 1446 | . 289 51 1106 Core 445 | . 44 . 401 Absorbed by Shields . | . . . . Core Remaining (%) 91 | 100 82 . . Volleys Fired 43 | . 20 . 23 Largest 2 | . 2 . 2 Hottest 53 | . 53 . 53 Shots Fired 71 | . 40 . 31 Gun 62 | . 34 . 28 Cannon . | . . . . Launcher 9 | . 6 . 3 Special . | . . . . Kinetic 62 | . 34 . 28 Thermal . | . . . . Explosive . | . . . . Electromagnetic 9 | . 6 . 3 Robot Hit Streak 13 | . 5 . 13 Robot Miss Streak 2 | . 2 . 1 Penetration Max . | . . . . Secondary Targets 1 | . 1 . . Max Gunslinging Chain 1 | . 1 . . Shots Hit Robots 51 | . 25 . 26 Core Hits 22 | . 15 . 7 Critical Kills . | . . . . Critical Parts Destroyed . | . . . . Critical Strikes . | . . . . Melee Attacks . | . . . . Impact . | . . . . Slashing . | . . . . Piercing . | . . . . Sneak Attacks . | . . . . Combat Hostiles . | . . . . Follow-up Attacks . | . . . . Damage Inflicted 917 | . 632 . 285 Guns 454 | . 225 . 229 Cannons . | . . . . Explosions 443 | . 403 . 40 Melee . | . . . . Ramming 20 | . 4 . 16 Kinetic 454 | . 225 . 229 Thermal 140 | . 140 . . Explosive . | . . . . Electromagnetic 303 | . 263 . 40 Impact . | . . . . Slashing . | . . . . Piercing . | . . . . Highest Corruption 3 | . 3 . . Average Corruption 2 | . 2 . . Corruption Purged . | . . . . Corruption Blocked . | . . . . Effects 1 | . 1 . . Matter Fused 1 | . 1 . . Overload Shots . | . . . . Overflow Damage 33 | . 33 . . Projectiles . | . . . . Explosions 33 | . 33 . . Melee . | . . . . Knockbacks . | . . . . Impact . | . . . . Kinetic . | . . . . Secondary . | . . . . Self-Inflicted Damage 73 | . 35 . 38 Shots 4 | . 2 . 2 Rammed 3 | . . . 3 Targets Rammed 6 | . 1 . 5 Kicked 3 | . 1 . 2 Crushed . | . . . . Highest Temperature 6 | . 6 . . Average Temperature 4 | . 4 . . Received Heat Transfer 477 | . 24 . 453 Siege Activations . | . . . . Martial Activations . | . . . . Shielding Activations . | . . . . Robots Disrupted . | . . . . Combat Hostiles . | . . . . Robots Corrupted . | . . . . Combat Hostiles . | . . . . Parts Fried . | . . . . Impact Corruptions . | . . . . Robots Melted . | . . . . Combat Hostiles . | . . . . Parts Melted . | . . . . Heat Transferred 200 | . 200 . . Parts Sabotaged . | . . . . Parts Stolen . | . . . . Parts Stripped . | . . . . Power Chain Reactions 4 | . 4 . . Alert | -11 -10 -9 -9 ------- Run | Yrd Mat Mat Sto Maximum Alert Level . | . . . . Low Security (%) 100 | 100 100 100 100 Level 1 . | . . . . Level 2 . | . . . . Level 3 . | . . . . Level 4 . | . . . . Level 5 . | . . . . High Security . | . . . . Max Security . | . . . . Peak Influence 147 | . 147 44 31 Initial 44 | . . 44 1 Average 28 | . 63 18 6 Influence Increases 299 | . 215 15 69 Destroy 0b10 Robot/C 200 | . 160 . 40 Destroy 0b10 Robot/NC 15 | . 15 . . Destroy Leader 42 | . 22 . 20 Successful Hack 15 | . 8 . 7 Destroy Structure 12 | . 10 . 2 Lose Combat Pursuer 15 | . . 15 . Influence Decreases 299 | . 108 117 74 Entered New Map 67 | . . 63 4 Time Decay 212 | . 108 44 60 Lost Part 20 | . . 10 10 Squads Dispatched 1 | . . . 1 Investigation . | . . . . Extermination . | . . . . Reinforcement . | . . . . Assault . | . . . . Garrison 1 | . . . 1 Intercept . | . . . . Searches Triggered . | . . . . Construction Impeded . | . . . . Haulers Reinforced . | . . . . Active Scanning Responses . | . . . . Cargo Convoy Interrupts . | . . . . Stealth | -11 -10 -9 -9 --------- Run | Yrd Mat Mat Sto Distress Signals 3 | . 1 . 2 Communications Jammed . | . . . . Distress Signals . | . . . . Times Spotted 23 | . 11 4 8 Peak Tracking Total 5 | . 3 4 5 Tactical Retreats 1 | . . 1 . Traps | -11 -10 -9 -9 ------- Run | Yrd Mat Mat Sto Traps Triggered 3 | . 2 . 1 Indirectly 1 | . . . 1 Trap Hack Attempts . | . . . . Triggered . | . . . . Disarmed . | . . . . Reprogrammed . | . . . . Reused . | . . . . Traps Extracted . | . . . . Installed . | . . . . Triggered . | . . . . Machines | -11 -10 -9 -9 ---------- Run | Yrd Mat Mat Sto Machines Disabled . | . . . . Max in Single Turn . | . . . . Machines Repaired . | . . . . Machines Dismantled . | . . . . Machines Sabotaged . | . . . . Overloaded Fab Kills . | . . . . Hacking | -11 -10 -9 -9 --------- Run | Yrd Mat Mat Sto Machines Accessed 3 | . 2 . 1 Terminals 2 | . 1 . 1 Fabricators . | . . . . Repair Stations . | . . . . Recycling Units 1 | . 1 . . Scanalyzers . | . . . . Garrison Access . | . . . . Total Hacks 6 | . 3 . 3 Successful 4 | . 3 . 1 Failed 2 | . . . 2 Catastrophic 1 | . . . 1 Database Lockouts . | . . . . Manual . | . . . . Terminals 5 | . 2 . 3 Fabricators . | . . . . Repair Stations . | . . . . Recycling Units 1 | . 1 . . Scanalyzers . | . . . . Garrison Access . | . . . . Terminal Hacks 3 | . 2 . 1 Open Door 1 | . . . 1 Level Access Points 1 | . 1 . . Zone Layout 1 | . 1 . . Fabricator Hacks . | . . . . Repair Station Hacks . | . . . . Recycling Unit Hacks 1 | . 1 . . Process 1 | . 1 . . Scanalyzer . | . . . . Garrison Access Hacks . | . . . . Unauthorized Hacks . | . . . . Terminals . | . . . . Fabricators . | . . . . Repair Stations . | . . . . Recycling Units . | . . . . Scanalyzers . | . . . . Garrison Access . | . . . . Data Cores Recovered . | . . . . Used . | . . . . Hacking Detections 3 | . 2 . 1 Full Trace Events . | . . . . Feedback Events . | . . . . Feedback Blocked . | . . . . Robot Schematics Acquired . | . . . . Robots Built . | . . . . Authchips . | . . . . Time . | . . . . Total Robot Build Rating . | . . . . Part Schematics Acquired . | . . . . Parts Built . | . . . . Authchips . | . . . . Time . | . . . . Total Part Build Rating . | . . . . Part Studies Acquired . | . . . . Parts Repaired . | . . . . Time . | . . . . Parts Recycled . | . . . . Recycled Matter 70 | . 70 . . Retrieved Matter . | . . . . Retrieved Components . | . . . . Parts Scanalyzed . | . . . . Part Schematics Acquired . | . . . . Parts Damaged . | . . . . Bothacking | -11 -10 -9 -9 ------------ Run | Yrd Mat Mat Sto Used RIF Installer . | . . . . Robots Hacked . | . . . . Non-combat . | . . . . Combat . | . . . . Robot Hacks Applied . | . . . . Relay Couplers Released . | . . . . Fabnet Peak Effective % . | . . . . Robots Rewired . | . . . . Allies Hacked . | . . . . Hacks Repelled . | . . . . Allies | -11 -10 -9 -9 -------- Run | Yrd Mat Mat Sto Total Allies . | . . . . Largest Group . | . . . . Highest-Rated Group . | . . . . Highest-Rated Ally . | . . . . Total Orders . | . . . . Ally Attacks . | . . . . Total Damage . | . . . . Kills . | . . . . Allies Corrupted . | . . . . Allies Melted . | . . . . Intel | -11 -10 -9 -9 ------- Run | Yrd Mat Mat Sto Active Infowar (turns) 394 | . . 128 266 Terrain 298 | . . 128 170 Seismic 96 | . . . 96 Robot Analysis Total . | . . . . Derelict Logs Recovered . | . . . . Drone Launches . | . . . . Drone Recoveries . | . . . . Exploration | -11 -10 -9 -9 ------------- Run | Yrd Mat Mat Sto Turns Passed 759 | 73 273 129 284 Spaces Moved 450 | 50 164 106 130 Core 18 | 5 . . 13 Treads 42 | . . . 42 Legs 390 | 45 164 106 75 Wheels . | . . . . Hover . | . . . . Flight . | . . . . Fastest Speed 50 | 50 120 120 100 Average Speed 124 | 120 120 120 135 Slowest Speed 190 | 150 120 120 190 Overloaded Moves . | . . . . Propulsion Burnouts . | . . . . Robots Hopped . | . . . . Potential Cave-ins . | . . . . Cave-ins Triggered . | . . . . Exploration Rate (%) 13 | 3 30 10 12 Regions Visited 3 Branch Regions 1 Pre-discovered Areas . | . . . . Known Exits Taken 1 | . 1 . . Unknown Exits Taken 2 | 1 . 1 . Scrap Searched . | . . . . Spaces Dug . | . . . . Terrain Destroyed 10 | . 10 . . Melee . | . . . . Projectile . | . . . . AOE 10 | . 10 . . Terrain Rammed . | . . . . Walls Destroyed . | . . . . Machines Disabled . | . . . . Actions | -11 -10 -9 -9 --------- Run | Yrd Mat Mat Sto Total 578 | 60 202 108 208 Wait 57 | 1 10 . 46 Move 447 | 49 163 105 130 Hop . | . . . . Pick Up 10 | 4 5 1 . Fast Attach 7 | 6 1 . . Attach 5 | . . 2 3 Detach . | . . . . Swap 2 | . 1 . 1 Drop 1 | . 1 . . Fire 43 | . 20 . 23 Melee . | . . . . Ram . | . . . . Kick 3 | . 1 . 2 Crush 3 | . . . 3 Escape Stasis . | . . . . Rewire . | . . . . Trap . | . . . . Miscellaneous . | . . . . Route ------- -11/Scrapyard -10/Materials (discovered 3 exits: *Mat x3) -9/Materials -9/Storage History --------- Turn | Location | Event 28 | -11/Scrapyard | Discovered new exit (range 14) 74 | -11/Scrapyard | Entered Materials 132 | -10/Materials | Identified exit to Materials 316 | -10/Materials | Build established: Mutant 347 | -10/Materials | Entered another Materials area 347 | -9/Materials | Evolved 2 slots: Utility x2 439 | -9/Materials | Discovered new exit (range 6) 476 | -9/Materials | Entered Storage 573 | -9/Storage | Garrison activated, responded to threat 678 | -9/Storage | Core integrity fell below 50% 745 | -9/Storage | Core integrity fell below 20% 760 | -9/Storage | Destroyed by G-34 Mercenary with Small Laser Last Messages --------------- W-16 Scout sends out distress signal. Critical hit (Burn: +37). U-05 Engineer lays Concrete. EMP Blaster destroyed. U-05 Engineer builds a Door. Kicked U-05 Engineer. Critical hit (Burn: +37). Terrain Scanner destroyed. Assault Rifle destroyed. Y-45 Defender destroyed. Slammed into Y-45 Defender. Acquired 1 matter. Critical hit (Burn: +37). Lgt. Treads destroyed. Critical hit (Burn: +37). Lgt. Treads destroyed. G-34 Mercenary suffers critical hit (Burn). Cooling System destroyed. Lgt. Assault Rifle destroyed. Seismic Detector destroyed. Map ----- +----------------------------------------------------+ | | | | | | | | | | | | | | | | | | | | | | | | | | | ?#???#?????#?????????????????????????????????????? | | ??????????#??????????????????????????????????????? | | ??#?##??#????????????????????????????????????????? | | ???????#????????#######??????????????????????????? | | ################# #??????????????????????????? | | #??????????????????????????? | | + ????????????????????????? | | #??????????????????????????? | | ############+#### #??????????????????????????? | | #????????? ??## ##??????????????????????????? | | ?#?#????? ??# #############???????????????? | | ????????""" ?# # Y #???????????????? | | ??????" """ ?# # g @ g #???????????????? | | ??#???T """ ## # """ """ #???????????????? | | ?????#? ? "Y" ## + """ """Y #???????????????? | | ????????? """ ## # """Y""" #???????????????? | | ?#??????? ## # #???????????????? | | ?????????+####?/## # #???????????????? | | ? ? ???????????? # ###########???????????????? | | ??? ???????????####+####?????????????????????????? | | ?????????????????????????????????????????????????? | | ?????????????????????????????????????????????????? | | ?????????????????????????????????????????????????? | | ?????????????????????????????????????????????????? | | ?????????????????????????????????????????????????? | | ?????????????????????????????????????????????????? | | ?????????????????????????????????????????????????? | | ?????????????????????????????????????????????????? | | ?????????????????????????????????????????????????? | | ?????????????????????????????????????????????????? | | ?????????????????????????????????????????????????? | | ?????????????????????????????????????????????????? | | ?????????????????????????????????????????????????? | | ?????????????????????????????????????????????????? | | ?????????????????????????????????????????????????? | | ?????????????????????????????????????????????????? | | ?????????????????????????????????????????????????? | +----------------------------------------------------+ Best States ------------- Heat Dissipation 50 Energy Generation 10 Energy Capacity 125 Matter Stores 300 Matter Capacity 300 Sight Range 16 Terrain Scan Range 14 Terrain Scan Density 10 Evasion (%) 55 Targeting Accuracy 6 Recoil Reduction 2 Item Schematics ----------------- None Robot Schematics ------------------ None Fabricated ------------ Nothing Repaired ---------- Nothing Studied --------- None Alien Tech Used ----------------- None Achievements -------------- None Challenges ------------ None Game ------ Seed VortexLobotomyAutohacker Manual? 0 Play Time 00:13:28 Cumulative 33.4 hours Start 2026.08.22 @ 15:28:14 End 2026.08.22 @ 15:39:31 Sessions 1 Manual Loads 0 Difficulty Rogue Special Mode None Game No. 66 Rogue 66 Adventurer 0 Explorer 0 Win Type - Total 0 Types 0/0/0/0/0/0/0/0/0/0 Lore% 13 Gallery% 23 Achievement% 15 Wizard Run 0 Options --------- Layout 1 ASCII 0 Keyboard 0 Movement Numpad Keybinds 0 Fullscreen 1 Font 32/SmallcapsGlow Map View 50x35 Zoom Use 0% Tactical HUD 0 Map Filters NONE Filters NONE Steam 1 RUN: 65e4de70-cc48-4ea7-a55e-6eea18330b72